bitfinex/quotes_ETHUSD_20240922
["timestamp","ask_amount","ask_price","bid_price","bid_amount"]
[1727022047891,9.89244192,2562.1,2562.0,0.0372541]
[1727022048091,11.40921991,2562.1,2562.0,0.0372541]
[1727022049490,5.98940192,2562.1,2562.0,0.0372541]
[1727022049679,0.07041198,2562.1,2562.0,0.0372541]
[1727022049879,0.07041198,2562.1,2562.0,3.9404541]
[1727022050109,2.2833,2562.4,2562.1,3.90302]
[1727022050347,2.2833,2562.4,2562.0,0.0372541]
[1727022050606,2.2833,2562.4,2562.0,3.9403541]
[1727022050810,2.2833,2562.4,2562.1,3.903]
[1727022051118,9.87982994,2562.7,2562.1,3.90296]
[1727022051332,11.25801993,2562.7,2562.1,3.90296]
[1727022052371,3.9023,2562.6,2562.0,0.0372541]
[1727022052523,3.63568994,2562.4,2562.0,0.0372541]
[1727022054055,7.53829994,2562.4,2562.0,0.0372541]
[1727022054241,3.63568994,2562.4,2562.0,0.0372541]
[1727022054473,3.9023,2562.6,2562.0,0.43130451]
[1727022054999,5.97768994,2562.1,2561.5,4.29844891]
[1727022055160,5.97768994,2562.1,2561.3,2.4639]
[1727022055161,7.53925994,2561.8,2561.3,2.4639]
[1727022055345,3.63568994,2561.8,2561.3,2.4639]
[1727022055854,3.63568994,2561.8,2561.3,6.36802]
[1727022056041,3.63568994,2561.8,2561.3,10.27217]
[1727022056244,3.63568994,2561.8,2561.3,10.27219]
[1727022057054,0.07019752,2561.7,2561.3,10.27219]
[1727022057275,0.07019752,2561.7,2561.4,3.90411]
[1727022057585,0.07019752,2561.6,2561.3,6.36802]
[1727022057946,3.63568994,2561.8,2561.3,6.36802]
[1727022058151,0.07019752,2561.7,2561.3,6.36802]
[1727022058376,3.90337,2561.9,2561.3,6.36802]
[1727022058684,3.97362956,2561.8,2561.3,2.4639]
[1727022058889,3.97362956,2561.8,2561.2,3.9416241]
[1727022059485,7.87722956,2561.8,2561.2,3.9416241]
[1727022059691,3.90389,2561.6,2561.2,0.0372541]
[1727022060065,3.97392408,2561.5,2561.2,0.0372541]
[1727022060598,3.90413,2561.4,2561.2,0.0372541]
[1727022060940,0.0698803,2561.3,2561.2,0.0372541]
[1727022061144,3.90396,2561.5,2561.2,0.0372541]
[1727022061388,3.90389,2561.6,2561.2,0.0372541]
[1727022061389,0.0698803,2561.4,2561.2,0.0372541]
[1727022061888,3.90389,2561.6,2561.2,0.0372541]
[1727022062045,0.06971788,2561.3,2561.2,0.0372541]
[1727022062241,3.90389,2561.6,2561.2,0.0372541]
[1727022062485,0.06971788,2561.3,2561.2,0.0372541]
[1727022062687,5.44527481,2561.6,2561.2,0.0372541]
[1727022062855,0.06971788,2561.3,2561.2,0.0372541]
[1727022063064,5.44527481,2561.6,2561.2,0.0372541]
[1727022063265,0.06971788,2561.3,2561.2,0.0372541]
[1727022063671,5.44527481,2561.6,2561.2,0.0372541]
[1727022063876,0.069733,2561.3,2561.2,0.0372541]
[1727022064074,5.44527481,2561.6,2561.2,0.0372541]
[1727022064280,0.06974056,2561.3,2561.2,0.0372541]
[1727022064889,3.90389,2561.6,2561.2,0.0372541]
[1727022065058,0.06974056,2561.3,2561.2,0.0372541]
[1727022065261,3.90399,2561.5,2561.2,0.0372541]
[1727022065573,6.27286,2561.3,2561.2,0.0372541]
[1727022065776,6.34256656,2561.3,2561.2,0.0372541]
[1727022065947,9.34256656,2561.3,2561.2,0.0372541]
[1727022070654,9.34256656,2561.3,2560.5,0.0372541]
[1727022070655,6.27393,2560.6,2560.5,0.0372541]
[1727022070994,6.34342492,2560.6,2560.5,0.0372541]
[1727022074191,0.06949492,2560.6,2560.5,0.0372541]
[1727022075016,3.97482492,2560.6,2560.5,0.0372541]
[1727022075230,0.06949492,2560.6,2560.5,0.0372541]
[1727022076563,3.90503,2560.8,2560.5,0.0372541]
[1727022076763,3.97452676,2560.7,2560.5,0.0372541]
[1727022077014,7.87980676,2560.7,2560.5,0.0372541]
[1727022077505,3.97452676,2560.7,2560.5,0.0372541]
[1727022078519,3.64090896,2560.6,2560.5,0.0372541]
[1727022078878,3.70971598,2560.6,2560.5,0.0372541]
[1727022079201,10.82322258,2560.6,2560.5,0.0372541]
[1727022080273,6.91789258,2560.6,2560.5,0.0372541]
[1727022080469,0.06880702,2560.6,2560.5,0.0372541]
[1727022081017,0.06884105,2560.6,2560.5,0.0372541]
[1727022081329,3.64090896,2560.8,2560.5,0.0372541]
[1727022081508,0.06884105,2560.6,2560.5,0.0372541]
[1727022081708,7.54593896,2560.8,2560.5,0.0372541]
[1727022081870,0.06884105,2560.6,2560.5,0.0372541]
[1727022082219,7.61508001,2560.6,2560.5,0.0372541]
[1727022082386,8.69824996,2560.6,2560.5,0.0372541]
[1727022082585,3.70978028,2560.6,2560.5,0.0372541]
[1727022083469,0.06887132,2560.6,2560.5,0.0372541]
[1727022083858,3.90503,2560.8,2560.5,0.0372541]
[1727022083971,0.06888265,2560.6,2560.5,0.0372541]
[1727022084173,9.31778013,2561.2,2560.6,2.4408]
[1727022084412,3.97121089,2561.1,2560.6,6.34604]
[1727022084595,7.54564896,2561.0,2560.6,2.4408]
[1727022085173,0.06663089,2560.9,2560.6,2.4408]
[1727022085375,3.64090896,2560.7,2560.5,0.0372541]
[1727022085684,0.06666115,2560.6,2560.5,0.0372541]
[1727022086474,3.97199115,2560.6,2560.5,0.0372541]
[1727022087619,4.95606326,2560.6,2560.5,0.0372541]
[1727022099089,0.06666115,2560.6,2560.5,0.0372541]
[1727022099588,0.06654772,2560.6,2560.5,0.0372541]
[1727022100137,3.64090896,2560.8,2560.5,0.0372541]
[1727022100138,7.54601896,2560.8,2560.5,0.0372541]
[1727022100380,0.06654772,2560.7,2560.5,0.0372541]
[1727022100543,7.54601896,2560.8,2560.5,0.0372541]
[1727022100742,3.97173832,2560.7,2560.5,0.0372541]
[1727022101355,0.06646832,2560.7,2560.5,0.0372541]
[1727022101539,3.64090896,2560.8,2560.5,0.0372541]
[1727022101739,3.64090896,2561.1,2560.7,2.2587]
[1727022101936,12.38,2561.7,2560.9,3.90477]
[1727022101937,0.06655907,2561.0,2560.9,3.90477]
[1727022102198,3.64090896,2561.4,2560.9,3.90477]
[1727022102340,5.30351003,2561.6,2561.1,2.2587]
[1727022102341,0.06437477,2561.3,2561.1,2.2587]
[1727022102540,8.94441899,2561.6,2561.1,2.2587]
[1727022102781,0.06215652,2561.5,2561.1,2.2587]
[1727022103086,0.06215652,2561.5,2561.4,6.16281]
[1727022103448,7.54389896,2562.2,2561.5,3.90385]
[1727022103647,3.90306,2562.1,2561.5,3.90385]
[1727022104075,7.54413896,2562.0,2561.4,10.06692]
[1727022104281,7.54413896,2562.0,2561.4,10.06683]
[1727022104587,11.44743896,2562.0,2561.4,7.169403]
[1727022104742,7.54413896,2562.0,2561.4,7.169403]
[1727022104943,7.54413896,2562.0,2561.5,3.90396]
[1727022105143,3.64090896,2562.0,2561.6,3.9038]
[1727022106673,7.54388896,2562.2,2561.6,7.8076]
[1727022106927,6.00790896,2562.5,2561.8,3.90349]
[1727022107071,6.00790896,2562.5,2562.0,3.90315]
[1727022107072,3.64090896,2562.5,2562.0,3.90315]
[1727022107275,3.64090896,2562.3,2561.9,2.2587]
[1727022107472,3.64090896,2562.3,2561.6,6.16244]
[1727022107473,3.90291,2562.2,2561.6,6.16244]
[1727022107673,3.64090896,2561.8,2561.6,2.2587]
[1727022108166,7.54442896,2561.8,2561.6,2.2587]
[1727022108582,3.90384,2561.6,2561.3,2.2587]
[1727022108781,13.81506896,2561.8,2561.3,2.2587]
[1727022108989,5.02241586,2561.8,2561.3,2.2587]
[1727022109199,3.90366,2561.7,2561.3,2.2587]
[1727022110700,3.90331,2562.0,2561.4,3.90401]
[1727022110887,2.367,2562.1,2561.3,6.16291]
[1727022111080,3.90296,2562.2,2561.3,6.16291]
[1727022111387,0.82982189,2562.1,2561.3,6.16291]
[1727022111591,0.82982189,2562.1,2561.5,3.90387]
[1727022111986,4.73287189,2562.1,2561.5,3.90387]
[1727022112219,0.82982189,2562.1,2561.6,3.90377]
[1727022112576,6.76225886,2562.3,2561.8,2.2587]
[1727022112775,6.76225886,2562.3,2561.8,6.16214]
[1727022113116,3.64090896,2562.3,2561.9,3.90335]
[1727022113622,3.64090896,2562.3,2561.8,2.2587]
[1727022113962,7.54365896,2562.3,2561.8,2.2587]
[1727022114291,9.91025896,2562.6,2561.9,3.90321]
[1727022114508,3.90257,2562.5,2561.9,3.90321]
[1727022114707,3.90262,2562.4,2561.9,3.90321]
[1727022114915,3.64090896,2562.2,2560.9,3.01464843]
[1727022115077,2.757262,2562.3,2561.2,3.9043]
[1727022115078,3.64090896,2561.6,2561.2,3.9043]
[1727022115278,3.64090896,2561.6,2561.0,6.16332]
[1727022115279,3.90402,2561.5,2561.0,6.16332]
[1727022116024,3.64090896,2561.6,2561.0,6.16332]
[1727022116520,3.64090896,2561.6,2561.0,6.1633]
[1727022116926,3.64090896,2561.6,2561.1,3.90455]
[1727022117128,0.04832979,2561.5,2561.1,3.90455]
[1727022118789,0.04832979,2561.5,2561.0,6.1633]
[1727022118790,3.95232979,2561.5,2561.0,6.1633]
[1727022119011,3.95232979,2561.5,2561.0,2.2587]
[1727022119211,3.90427,2561.3,2561.0,2.2587]
[1727022119439,0.04859169,2561.2,2560.8,2.2587]
[1727022119614,0.04859169,2561.2,2560.8,6.16371]
[1727022119945,0.04859169,2561.2,2560.6,3.90523]
[1727022119946,3.90469,2561.1,2560.6,3.90523]
[1727022120242,0.04859169,2561.1,2560.6,3.90523]
[1727022121403,3.95319169,2561.1,2560.6,3.90523]
[1727022122049,3.95319169,2561.1,2560.6,7.81048]
[1727022122246,0.04859169,2561.1,2560.6,3.90523]
[1727022122571,3.90413,2561.4,2560.9,3.90486]
[1727022122780,0.04823495,2561.3,2560.9,3.90486]
[1727022123359,0.04823495,2561.3,2560.7,4.52516841]
[1727022123569,0.04823495,2561.3,2560.8,3.90498]
[1727022124093,0.04823495,2561.3,2560.6,3.90522]
[1727022124094,4.73813644,2561.3,2560.6,7.81045]
[1727022124292,3.9045,2561.2,2560.6,3.90522]
[1727022124815,7.80963,2561.0,2560.5,0.0372541]
[1727022125017,3.95334366,2560.9,2560.5,0.0372541]
[1727022126177,3.90512,2560.8,2560.5,0.0372541]
[1727022126488,0.04826914,2560.7,2560.5,0.0372541]
[1727022126854,3.90512,2560.8,2560.5,0.0372541]
[1727022127094,0.04826914,2560.6,2560.5,0.0372541]
[1727022127280,3.90512,2560.8,2560.5,0.0372541]
[1727022127484,0.04826914,2560.6,2560.5,0.0372541]
[1727022128088,3.90497,2560.9,2560.5,0.0372541]
[1727022128250,0.04806034,2560.6,2560.5,0.0372541]
[1727022128450,3.90497,2560.9,2560.5,0.0372541]
[1727022128747,3.90448,2561.2,2560.6,3.90524]
[1727022128953,0.04791607,2561.1,2560.5,6.64982251]
[1727022129187,0.04791607,2561.1,2560.7,3.90517]
[1727022130788,0.04791607,2561.1,2560.8,3.905]
[1727022130985,3.90392,2561.6,2561.0,2.3128]
[1727022131190,0.04825395,2561.5,2561.1,4.14351965]
[1727022131391,3.90422,2561.4,2561.0,2.3128]
[1727022131586,0.04825774,2561.3,2560.8,3.90501]
[1727022131825,0.04825774,2561.3,2561.0,3.90472]
[1727022132028,3.9039,2561.6,2561.0,7.80944]
[1727022132226,0.04832606,2561.5,2561.0,3.90472]
[1727022132430,0.04832606,2561.5,2561.0,8.590324]
[1727022132813,3.95228606,2561.5,2561.0,4.685604]
[1727022132993,0.04832606,2561.5,2561.0,7.80928]
[1727022133190,0.04832606,2561.5,2561.0,3.90464]
[1727022134031,0.04832606,2561.5,2561.0,3.90463]
[1727022134232,0.04832606,2561.5,2561.0,7.80927]
[1727022134431,0.04832606,2561.5,2561.1,3.90455]
[1727022134924,0.04832606,2561.5,2561.0,3.90461]
[1727022137028,3.90412,2561.4,2560.8,3.9049]
[1727022137232,0.04778531,2561.3,2560.9,3.90477]
[1727022138201,0.04778531,2561.3,2561.0,3.90471]
[1727022138398,3.90389,2561.6,2561.0,7.80942]
[1727022138617,0.04775875,2561.5,2561.0,7.80935]
[1727022139015,0.04775875,2561.5,2561.1,3.90456]
[1727022139217,0.04775875,2561.5,2561.1,0.78092]
[1727022139416,2.3517,2562.0,2561.2,0.07807698]
[1727022139644,0.04618026,2561.9,2561.5,3.90385]
[1727022139942,0.04618026,2561.9,2561.2,3.90436]
[1727022140152,0.04618026,2561.9,2561.6,6.21647]
[1727022140388,3.90306,2562.1,2561.6,6.21647]
[1727022140517,0.04458717,2561.8,2561.6,6.21647]
[1727022140703,7.53958976,2562.0,2561.4,6.39794]
[1727022140904,7.53958976,2562.0,2561.4,6.39792]
[1727022140905,0.04458717,2561.7,2561.4,6.39792]
[1727022141136,7.53949976,2562.0,2561.5,3.90387]
[1727022141738,0.0447164,2561.9,2561.5,3.90387]
[1727022142145,0.0447164,2561.9,2561.4,6.39792]
[1727022142304,0.0447164,2561.9,2561.4,10.30195]
[1727022142504,0.0447164,2561.9,2561.4,10.30193]
[1727022142844,0.0447164,2561.9,2561.4,10.30194]
[1727022143315,0.0447164,2561.9,2561.5,3.9039]
[1727022144343,0.0447164,2561.9,2561.6,3.90375]
[1727022146322,0.0447164,2561.9,2561.7,3.90364]
[1727022146841,0.04503183,2561.8,2561.7,3.90364]
[1727022147147,10.15771,2562.2,2561.7,3.90364]
[1727022147344,0.04503183,2561.8,2561.7,3.90364]
[1727022147554,2.3689,2562.7,2562.2,3.90289]
[1727022147849,2.3689,2562.7,2562.2,7.80569]
[1727022148065,2.3689,2562.7,2561.9,2.4939]
[1727022148376,2.3689,2563.0,2562.5,3.90236]
[1727022148570,2.759076,2563.0,2562.4,2.4939]
[1727022148724,2.3689,2563.0,2562.7,3.90204]
[1727022149422,7.53772976,2563.2,2562.7,3.90204]
[1727022150176,3.63629976,2563.2,2562.7,3.90204]
[1727022150337,3.90139,2563.2,2562.7,3.90203]
[1727022150536,0.60051998,2563.2,2562.7,3.90213]
[1727022150742,4.50188998,2563.2,2562.7,3.90213]
[1727022152170,3.90154,2563.1,2562.4,2.4939]
[1727022152376,7.8392341,2563.5,2562.9,3.90173]
[1727022152673,3.9382441,2563.5,2563.0,3.90164]
[1727022152975,0.0372541,2563.5,2563.1,3.90144]
[1727022153339,0.0372541,2563.5,2563.3,3.90119]
[1727022153541,0.0372541,2563.5,2563.4,3.97907506]
[1727022153856,0.0372541,2563.5,2563.4,3.90106]
[1727022154675,0.07695316,2563.5,2563.4,3.90106]
[1727022154879,0.0372541,2563.5,2563.4,3.90106]
[1727022155029,0.07695316,2563.5,2563.4,3.90106]
[1727022156470,0.07695316,2563.5,2563.4,4.930675]
[1727022157673,0.07695316,2563.5,2563.4,1.029615]
[1727022157889,0.07695316,2563.5,2563.3,3.90119]
[1727022161491,0.07695316,2563.5,2563.1,6.39535]
[1727022161492,0.07695316,2563.5,2563.1,10.29678]
[1727022161632,0.07695316,2563.5,2563.2,3.90136]
[1727022162149,134.97,2570.2,2564.2,6.35885]
[1727022162150,0.20091811,2564.8,2564.2,6.35885]
[1727022162348,0.20091811,2564.8,2564.2,7.384734]
[1727022162554,0.20091811,2564.8,2564.2,10.384734]
[1727022163423,0.20091811,2564.8,2564.7,3.94999]
[1727022177227,0.20091811,2564.8,2564.7,3.89909]
[1727022181915,0.20091811,2564.8,2564.7,6.36739]
[1727022182062,0.0372541,2565.1,2565.0,3.89863]
[1727022191676,0.0372541,2565.1,2565.0,9.36693]
[1727022192032,0.0372541,2565.8,2565.7,3.89757]
[1727022193535,0.0372541,2565.8,2565.6,3.89764]
[1727022194379,0.0372541,2565.8,2565.7,3.89757]
[1727022194583,0.0372541,2565.8,2565.7,4.677091]
[1727022197091,0.0372541,2565.8,2565.7,4.75502568]
[1727022197408,0.0372541,2565.8,2565.7,13.84978957]
[1727022197603,0.0372541,2565.8,2565.7,13.77185696]
[1727022197787,0.0372541,2565.8,2565.7,10.145391]
[1727022199616,0.0372541,2565.8,2565.7,4.677091]
[1727022204002,0.0372541,2565.8,2565.7,3.89757]
[1727022204198,0.0372541,2565.8,2565.6,3.89764]
[1727022204486,0.0372541,2565.8,2565.7,3.89757]
[1727022216150,2.3879541,2565.8,2565.5,3.89777]
[1727022216349,2.3879541,2565.8,2564.8,4.64583829]
[1727022216350,3.62646596,2565.6,2564.8,3.83024336]
[1727022216555,1.02841611,2565.8,2564.9,3.89868]
[1727022216556,2.3507,2565.2,2564.9,3.89868]
[1727022216853,2.3507,2565.2,2565.1,3.89848]
[1727022217283,2.3507,2565.2,2564.9,8.18129141]
[1727022217454,2.3507,2565.2,2564.9,3.89865]
[1727022217649,2.3507,2565.2,2565.0,3.89863]
[1727022218571,2.3507,2565.2,2565.1,3.89848]
[1727022218788,2.3507,2565.2,2565.0,7.79724]
[1727022219292,2.3507,2565.2,2565.1,3.89848]
[1727022219593,2.3507,2565.7,2565.3,3.89806]
[1727022219798,2.3507,2565.7,2565.4,3.89801]
[1727022220005,2.3507,2565.7,2565.3,3.89806]
[1727022220307,2.3507,2565.7,2565.3,7.79615]
[1727022220506,2.3507,2565.7,2565.3,3.89806]
[1727022220659,2.3507,2565.7,2565.5,3.89775]
[1727022221359,2.3507,2565.7,2565.3,3.89804]
[1727022221759,2.3507,2565.7,2565.3,7.79611]
[1727022222083,2.3507,2565.7,2565.3,3.89804]
[1727022222296,2.97922941,2565.7,2565.3,3.89804]
[1727022222454,2.3883,2565.7,2565.2,3.89827]
[1727022223405,2.3883,2565.7,2565.2,3.89831]
[1727022223406,2.3883,2565.6,2565.2,3.89831]
[1727022225974,2.3883,2565.6,2565.3,3.89817]
[1727022226408,2.3883,2565.6,2565.4,3.898]
[1727022226902,2.3883,2565.6,2565.3,3.89809]
[1727022227502,2.3883,2565.6,2565.1,7.79678]
[1727022227503,0.23883,2565.5,2565.1,7.79678]
[1727022227709,2.3883,2565.6,2565.2,3.89832]
[1727022228411,2.3883,2565.6,2565.3,3.89816]
[1727022229715,2.3883,2565.6,2565.5,3.89787]
[1727022230858,2.3883,2565.6,2565.3,3.8981]
[1727022231285,2.3883,2565.6,2565.5,3.89787]
[1727022236203,3.66372006,2565.8,2565.5,3.89787]
[1727022236204,0.0372541,2565.8,2565.7,3.89757]
[1727022240602,0.0372541,2565.8,2565.6,3.89772]
[1727022240603,2.333,2565.7,2565.6,3.89772]
[1727022240796,2.333,2565.7,2565.5,3.89787]
[1727022241137,2.333,2565.7,2565.1,2.3917]
[1727022241138,2.333,2565.7,2565.3,3.89804]
[1727022241631,2.333,2565.7,2565.5,3.89787]
[1727022243246,2.333,2565.7,2565.5,3.89778]
[1727022243412,2.333,2565.7,2565.6,3.89772]
[1727022243603,0.0372541,2565.8,2565.7,3.89757]
[1727022246504,0.0372541,2565.8,2565.7,6.36720721]
[1727022247055,0.0372541,2565.8,2565.7,6.36720399]
[1727022247255,0.0372541,2565.8,2565.7,10.10486493]
[1727022247471,0.0372541,2565.8,2565.7,12.23118484]
[1727022248099,0.0372541,2565.8,2565.7,11.41558991]
[1727022251004,0.0372541,2565.8,2565.7,12.23118484]
[1727022251250,0.0372541,2565.8,2565.7,12.63898231]
[1727022251455,0.0372541,2565.8,2565.7,14.43494484]
[1727022252131,0.0372541,2565.8,2565.7,9.04324484]
[1727022252334,0.0372541,2565.8,2565.7,3.89757]
[1727022257432,0.0372541,2565.8,2565.6,3.89761]
[1727022257633,0.0372541,2565.8,2565.6,7.79524]
[1727022258433,0.0372541,2565.8,2565.6,3.89761]
[1727022258773,0.0372541,2565.8,2565.7,3.89757]
[1727022258974,0.0372541,2565.8,2565.7,3.97551244]
[1727022259278,0.0372541,2565.8,2565.7,4.84078328]
[1727022259835,0.0372541,2565.8,2565.7,4.76284084]
[1727022260198,0.0372541,2565.8,2565.7,4.84077659]
[1727022260350,0.0372541,2565.8,2565.7,4.76284084]
[1727022260690,0.0372541,2565.8,2565.7,7.09424084]
[1727022261243,0.0372541,2565.8,2565.7,7.91026348]
[1727022261459,0.0372541,2565.8,2565.7,7.91029077]
[1727022261635,0.0372541,2565.8,2565.7,7.09424084]
[1727022261836,0.0372541,2565.8,2565.7,8.31763324]
[1727022262374,0.0372541,2565.8,2565.7,7.91022406]
[1727022262885,0.0372541,2565.8,2565.7,11.7254307]
[1727022263176,0.0372541,2565.8,2565.7,14.62584656]
[1727022263939,0.0372541,2565.8,2565.7,14.21599262]
[1727022264154,0.0372541,2565.8,2565.7,12.58496696]
[1727022264380,0.0372541,2565.8,2565.7,12.42019474]
[1727022264552,0.0372541,2565.8,2565.7,12.58496696]
[1727022264755,0.0372541,2565.8,2565.7,12.41972213]
[1727022264936,0.0372541,2565.8,2565.7,12.58496696]
[1727022265139,0.0372541,2565.8,2565.7,14.62383324]
[1727022265689,0.0372541,2565.8,2565.7,14.21523529]
[1727022265887,0.0372541,2565.8,2565.7,9.65509853]
[1727022266189,0.0372541,2565.8,2565.7,6.22897]
[1727022266481,0.0372541,2565.8,2565.7,3.89757]
[1727022268770,0.0372541,2565.8,2565.7,3.97550228]
[1727022271001,0.0372541,2565.8,2565.7,3.89757]
[1727022271210,0.0372541,2565.8,2565.7,4.83656018]
[1727022272506,0.0372541,2565.8,2565.7,3.89757]
[1727022274204,2.5141541,2565.8,2565.7,3.89757]
[1727022275991,2.5141541,2565.8,2565.5,3.89776]
[1727022275992,2.5141541,2565.8,2565.6,3.89761]
[1727022276195,2.5141541,2565.8,2565.5,3.89773]
[1727022276618,2.5141541,2565.8,2565.7,3.89757]
[1727022279212,2.5141541,2565.8,2565.5,7.79546]
[1727022280209,2.5141541,2565.8,2565.5,3.89773]
[1727022280802,2.5141541,2565.8,2565.5,7.79553]
[1727022281525,2.5141541,2565.8,2565.6,3.8977]
[1727022282839,2.5141541,2565.8,2565.5,3.89773]
[1727022283803,3.51793011,2565.8,2565.1,3.01464843]
[1727022284056,3.51793011,2565.8,2565.3,3.89808]
[1727022284057,2.2754,2565.6,2565.3,3.89808]
[1727022294019,2.2754,2565.6,2565.3,7.79613]
[1727022294245,2.2754,2565.6,2565.3,3.89805]
[1727022295658,2.2754,2565.6,2565.3,7.79615]
[1727022295868,2.2754,2565.6,2565.3,3.89805]
[1727022296020,2.2754,2565.6,2565.3,7.79615]
[1727022296358,2.2754,2565.6,2565.3,3.89805]
[1727022297555,2.2754,2565.6,2565.3,7.79615]
[1727022300270,2.2754,2565.6,2565.3,3.89805]
[1727022300867,2.2754,2565.6,2565.4,3.89802]
[1727022303541,2.2754,2565.6,2565.5,3.89787]
[1727022305142,0.0372541,2565.8,2565.7,3.89757]
[1727022305438,0.0372541,2565.8,2565.5,0.779589]
[1727022305439,0.0372541,2565.8,2565.6,3.8977]
[1727022305667,0.0372541,2565.8,2565.6,3.89763]
[1727022306190,0.0372541,2565.8,2565.7,3.89757]
[1727022307295,0.0372541,2565.8,2565.7,4.67709]
[1727022308662,0.0372541,2565.8,2565.6,3.89763]
[1727022308865,2.4741,2565.7,2565.6,3.89763]
[1727022309075,2.4741,2565.7,2565.2,3.8982]
[1727022309249,3.62646596,2565.5,2565.2,3.8982]
[1727022309583,3.62646596,2565.5,2565.3,3.89814]
[1727022309981,2.4741,2565.4,2565.2,3.89831]
[1727022310142,3.62646596,2565.3,2565.1,6.91297843]
[1727022310347,3.62646596,2565.3,2565.1,3.01464843]
[1727022310553,2.3763,2565.2,2565.1,3.01464843]
[1727022311947,2.3763,2565.2,2564.9,3.89868]
[1727022312294,3.62646596,2565.1,2564.9,3.89868]
[1727022312996,3.62646596,2565.1,2564.8,3.89893]
[1727022313925,2.3763,2565.0,2564.8,3.89893]
[1727022314691,2.3763,2565.0,2564.6,3.89915]
[1727022315220,3.62646596,2564.9,2564.5,3.01464843]
[1727022315370,3.62646596,2564.7,2564.5,3.01464843]
[1727022315685,2.3763,2564.6,2564.4,3.89954]
[1727022317172,2.3763,2564.6,2564.2,7.7995]
[1727022317379,3.62646596,2564.5,2564.3,3.89957]
[1727022317615,3.62646596,2564.5,2564.4,3.89954]
[1727022317974,2.3763,2564.6,2564.4,3.89954]
[1727022318178,2.3763,2564.6,2564.4,3.89942]
[1727022321157,2.3763,2564.6,2564.5,0.09944]
[1727022321919,2.3763,2564.6,2563.9,3.01464843]
[1727022321920,4.4995166,2564.6,2563.9,3.01464843]
[1727022322137,9.99511596,2564.0,2563.9,3.01464843]
[1727022322357,3.90061,2563.7,2563.5,0.3889101]
[1727022322628,6.36926,2563.6,2563.5,0.3889101]
[1727022323030,3.8581346,2563.6,2563.5,0.3889101]
[1727022323391,3.8581346,2563.6,2563.1,3.9014]
[1727022323595,6.36927,2563.6,2563.1,3.9014]
[1727022323828,2.4685,2563.6,2563.1,3.9014]
[1727022324395,6.36927,2563.6,2563.1,3.9014]
[1727022324712,2.4685,2565.6,2565.1,3.89835]
[1727022324889,2.4685,2565.6,2564.8,2.3823]
[1727022325093,2.4685,2565.6,2565.1,3.89847]
[1727022325412,2.4685,2565.6,2564.8,4.85117277]
[1727022325413,2.4685,2565.6,2565.2,3.89832]
[1727022325608,2.4685,2565.6,2564.9,3.89875]
[1727022326237,2.4685,2565.6,2565.0,3.89858]
[1727022326651,3.62646596,2565.5,2564.9,3.89868]
[1727022327526,3.62646596,2565.5,2565.0,3.89863]
[1727022328620,3.62646596,2565.5,2564.8,3.89892]
[1727022328847,3.62646596,2565.5,2564.9,3.89875]
[1727022331505,3.62646596,2565.5,2565.0,3.89862]
[1727022331913,3.62646596,2565.5,2565.1,3.89845]
[1727022332250,3.62646596,2565.5,2565.0,3.89862]
[1727022332632,3.62646596,2565.5,2564.8,3.89893]
[1727022332633,3.62646596,2565.5,2565.1,3.89848]
[1727022332838,3.62646596,2565.5,2565.2,3.8983]
[1727022333578,3.62646596,2565.5,2565.1,3.89848]
[1727022334649,3.62646596,2565.5,2565.2,3.89832]
[1727022335689,3.62646596,2565.5,2565.3,3.89816]
[1727022335804,4.23596256,2565.5,2565.1,3.89837]
[1727022337972,4.23596256,2565.5,2565.1,7.79675]
[1727022338150,4.23596256,2565.5,2565.1,3.89837]
[1727022338674,4.23596256,2565.5,2565.4,3.89802]
[1727022338827,0.6094966,2565.5,2565.4,3.89802]
[1727022339027,2.4685,2565.6,2565.5,3.89787]
[1727022342129,2.4685,2565.6,2565.4,3.89802]
[1727022342130,0.0372541,2565.8,2565.7,3.89757]
[1727022350082,0.0372541,2565.8,2565.7,3.97551712]
[1727022350263,0.0372541,2565.8,2565.7,3.89757]
[1727022351298,0.0372541,2565.8,2565.7,6.89757]
[1727022351445,0.0372541,2565.8,2565.7,8.5708046]
[1727022352165,0.0372541,2565.8,2565.7,15.08450524]
[1727022353849,0.0372541,2565.8,2565.7,11.45803928]
[1727022354087,0.0372541,2565.8,2565.7,15.08450524]
[1727022354584,0.0372541,2565.8,2565.7,15.09759025]
[1727022354795,0.0372541,2565.8,2565.7,15.67422493]
[1727022354948,0.0372541,2565.8,2565.7,17.05436006]
[1727022355489,0.0372541,2566.6,2566.5,3.89635]
[1727022355652,0.0372541,2566.6,2566.5,10.41005064]
[1727022355854,0.0372541,2566.6,2566.5,9.83341596]
[1727022356049,0.0372541,2566.6,2566.5,6.20695]
[1727022356549,0.0372541,2566.6,2566.5,3.97426554]
[1727022356750,0.0372541,2566.6,2566.5,4.68342655]
[1727022358192,0.0372541,2566.6,2566.5,6.99402655]
[1727022362813,0.0372541,2566.6,2566.5,10.07193135]
[1727022362968,0.0372541,2566.6,2566.5,9.99402655]
[1727022367918,0.0372541,2566.6,2566.4,3.8964]
[1727022368126,0.0372541,2566.6,2566.5,3.89635]
[1727022368624,0.0372541,2566.6,2566.5,9.92941596]
[1727022369602,0.0372541,2566.6,2566.5,12.92941596]
[1727022370272,0.0372541,2566.6,2566.5,9.30295]
[1727022370587,0.0372541,2566.6,2566.5,10.9855316]
[1727022377403,0.0372541,2567.3,2567.2,3.89529]
[1727022378890,0.0372541,2567.3,2567.2,6.30189]
[1727022380746,0.0372541,2567.3,2567.2,9.30189]
[1727022380907,0.0372541,2567.3,2567.2,10.68338913]
[1727022381231,0.0372541,2567.3,2567.2,4.96814317]
[1727022381389,0.0372541,2567.3,2567.2,7.27314317]
[1727022381588,0.0372541,2567.3,2567.2,10.89960913]
[1727022382468,0.0372541,2567.3,2567.2,10.27314317]
[1727022384227,0.0372541,2567.3,2567.2,7.96814317]
[1727022385698,0.0372541,2567.3,2567.2,10.27314317]
[1727022386040,0.0372541,2567.3,2567.2,11.65557816]
[1727022386750,0.0372541,2567.3,2567.2,12.46970319]
[1727022386891,0.0372541,2568.1,2567.2,12.46970319]
[1727022386892,0.0372541,2568.1,2568.0,3.89408]
[1727022387096,0.0372541,2568.1,2568.0,4.903409]
[1727022389529,2.4179541,2568.1,2567.2,1.21682028]
[1727022389881,2.3807,2567.4,2566.9,3.89566]
[1727022390081,2.3807,2567.4,2566.9,3.89565]